bitfinex/quotes_ETHUSD_20240707
["timestamp","ask_amount","ask_price","bid_price","bid_amount"]
[1720318034501,3.85709515,3066.1,3065.9,3.2616]
[1720318034822,2.61824486,3066.0,3065.9,3.2616]
[1720318035120,5.02594486,3066.0,3065.9,3.2616]
[1720318036383,5.02594486,3066.0,3065.7,3.26188]
[1720318036583,0.948,3065.8,3065.7,3.26188]
[1720318036783,5.48352922,3065.8,3065.7,3.26188]
[1720318037020,6.43152922,3065.8,3065.7,3.26188]
[1720318038430,6.43152922,3065.8,3065.1,3.26249]
[1720318038431,7.07468214,3065.8,3065.1,3.26249]
[1720318038606,0.948,3065.4,3065.3,3.26225]
[1720318038813,2.07752922,3065.4,3065.3,3.26225]
[1720318038984,2.07752922,3065.4,3065.3,3.34935889]
[1720318039923,2.07768202,3065.4,3065.3,0.08710889]
[1720318040223,3.71546846,3065.4,3065.1,3.26246]
[1720318040443,0.948,3065.2,3065.1,3.26246]
[1720318040626,2.07768202,3065.2,3065.1,3.26246]
[1720318040825,2.1432913,3065.2,3065.1,3.26246]
[1720318041704,2.1432913,3065.2,3064.9,3.26265]
[1720318041904,5.48379992,3065.1,3064.9,3.26265]
[1720318042204,4.354,3065.1,3065.0,3.26264]
[1720318042436,5.48381414,3065.1,3065.0,3.26264]
[1720318042822,4.354,3065.1,3065.0,3.26264]
[1720318043210,5.48381461,3065.1,3065.0,3.26264]
[1720318043514,5.48381526,3065.1,3065.0,3.26264]
[1720318043739,4.354,3065.1,3065.0,3.26264]
[1720318046202,5.03745093,3065.1,3065.0,3.26264]
[1720318046403,6.16728407,3065.1,3065.0,3.26264]
[1720318048550,4.354,3065.1,3065.0,3.26264]
[1720318053743,4.354,3065.1,3065.0,3.34768776]
[1720318055436,5.48381743,3065.1,3065.0,3.34768776]
[1720318056160,4.354,3065.1,3065.0,0.08504776]
[1720318056561,5.48381276,3065.1,3064.6,3.263]
[1720318056782,1.64307199,3065.0,3064.6,3.263]
[1720318056964,1.12981276,3064.9,3064.6,3.263]
[1720318057136,0.06560928,3064.8,3064.6,3.263]
[1720318057677,1.12996086,3064.7,3064.6,3.263]
[1720318057872,0.06560928,3064.8,3064.6,3.263]
[1720318058049,1.1299613,3064.7,3064.6,3.263]
[1720318059405,0.06560928,3064.8,3064.6,3.263]
[1720318059625,1.12996478,3064.7,3064.4,3.26323]
[1720318059899,0.06560928,3064.6,3064.4,3.26323]
[1720318060781,0.06560928,3064.7,3064.4,3.26323]
[1720318060983,1.13000402,3064.6,3064.4,3.26323]
[1720318061293,1.1956133,3064.5,3064.4,3.26323]
[1720318061494,1.13000402,3064.5,3064.4,3.26323]
[1720318061660,1.13000402,3064.6,3064.4,3.26323]
[1720318061866,0.95,3064.5,3064.4,3.26319]
[1720318066497,2.07993655,3064.5,3064.4,3.26319]
[1720318068784,2.07993655,3064.5,3064.4,3.34576959]
[1720318069400,0.95,3064.5,3064.4,3.34576959]
[1720318069685,0.95,3064.5,3064.4,6.60904959]
[1720318070108,2.07996266,3064.5,3064.4,6.60904959]
[1720318072823,0.95,3064.5,3064.4,6.60904959]
[1720318073250,2.07995918,3064.5,3064.4,6.60904959]
[1720318076327,2.07996776,3064.5,3064.4,6.60904959]
[1720318077758,1.1299679,3064.5,3064.4,6.60904959]
[1720318078049,0.95,3064.8,3064.5,6.52634]
[1720318078256,0.95,3064.8,3064.7,6.52592]
[1720318078856,2.07982423,3064.8,3064.7,6.60844464]
[1720318079212,4.49852423,3064.8,3064.7,3.34548464]
[1720318079425,6.37881773,3064.8,3064.7,3.34548464]
[1720318081223,5.92240438,3064.8,3064.7,3.34548464]
[1720318081872,3.3687,3064.8,3064.7,3.34548464]
[1720318082051,5.92232618,3064.8,3064.7,3.34548464]
[1720318082380,3.50359993,3064.8,3064.7,6.60844464]
[1720318083146,2.55359993,3064.8,3064.7,6.60844464]
[1720318085077,11.834,3065.1,3065.0,6.52528]
[1720318085286,6.90722126,3065.1,3065.0,6.52528]
[1720318085469,6.90722126,3065.1,3065.0,9.87033363]
[1720318088180,4.354,3065.1,3065.0,9.87033363]
[1720318088378,4.354,3065.1,3065.0,12.34413363]
[1720318088602,1.00688135,3065.9,3065.8,6.52358]
[1720318088873,4.466,3066.1,3066.0,6.52314]
[1720318089084,7.96824006,3066.1,3066.0,6.52314]
[1720318089235,7.96824006,3066.1,3066.0,6.60515983]
[1720318090780,4.466,3066.1,3066.0,9.86672983]
[1720318094445,4.466,3066.1,3066.0,6.60515983]
[1720318097779,4.9126,3066.1,3066.0,6.60515983]
[1720318098162,4.466,3066.1,3066.0,6.60515983]
[1720318100374,4.466,3066.1,3066.0,0.08201983]
[1720318100577,4.466,3066.1,3066.0,3.26157]
[1720318100777,4.466,3066.1,3066.0,3.3431213]
[1720318103488,4.466,3066.1,3066.0,0.0815513]
[1720318103696,4.91916093,3066.1,3066.0,0.0815513]
[1720318103884,4.91916093,3066.1,3065.8,3.26172]
[1720318104210,0.06560928,3066.0,3065.8,3.26172]
[1720318105772,0.06560928,3066.0,3065.9,3.26168]
[1720318106004,4.466,3066.1,3065.8,3.26172]
[1720318106308,4.466,3066.1,3065.9,3.26167]
[1720318108315,0.06560928,3066.0,3065.9,3.26167]
[1720318108671,4.466,3066.1,3065.9,3.26167]
[1720318108877,4.91916093,3066.1,3065.9,3.26167]
[1720318109084,0.06560928,3066.0,3065.9,3.26167]
[1720318109371,4.52287052,3066.1,3065.9,3.26167]
[1720318110608,1.19508295,3066.0,3065.7,3.26182]
[1720318110787,0.06560928,3066.0,3065.8,3.26179]
[1720318111615,1.12948703,3065.9,3065.7,3.26182]
[1720318111772,4.03303501,3065.9,3065.7,3.26182]
[1720318111977,2.90354798,3065.9,3065.7,3.26182]
[1720318112171,1.12954165,3065.8,3065.7,3.26182]
[1720318112416,1.19515093,3065.8,3065.6,3.262]
[1720318112587,1.19515093,3065.7,3065.6,3.262]
[1720318113801,2.14415093,3065.7,3065.6,3.34380826]
[1720318114492,2.07857597,3065.7,3065.6,3.34380826]
[1720318115176,1.12957597,3065.7,3065.6,3.34380826]
[1720318115379,2.07857597,3065.7,3065.6,3.34380826]
[1720318117341,2.07857597,3065.7,3065.6,0.08180826]
[1720318117498,2.5374645,3065.7,3065.6,0.08180826]
[1720318117700,2.537486,3065.7,3065.5,3.2621]
[1720318118020,2.537486,3065.7,3065.4,3.26219]
[1720318118021,0.45888853,3065.7,3065.6,0.0818912]
[1720318118214,2.53751409,3065.7,3065.6,0.0818912]
[1720318118535,2.53751409,3065.7,3065.4,3.26219]
[1720318118706,0.45888853,3065.7,3065.6,0.0818912]
[1720318118906,1.95788853,3065.7,3065.5,0.08191398]
[1720318119204,1.00888853,3065.7,3065.6,0.0818912]
[1720318119401,1.95788853,3065.7,3065.6,0.0818912]
[1720318119601,3.08755481,3065.7,3065.4,3.26221]
[1720318119812,0.949,3065.5,3065.4,3.26221]
[1720318120021,2.07866628,3065.5,3065.4,3.26221]
[1720318120225,2.07865455,3065.5,3065.4,3.26221]
[1720318121006,2.07862448,3065.5,3065.4,3.26221]
[1720318121530,2.07862726,3065.5,3065.4,3.26221]
[1720318124234,0.949,3065.5,3065.4,3.26221]
[1720318124596,2.07860629,3065.5,3065.4,3.26221]
[1720318126229,2.07860629,3065.5,3065.2,3.26233]
[1720318126534,5.59560629,3065.4,3065.3,3.26226]
[1720318126708,6.54460629,3065.4,3065.3,3.26226]
[1720318127403,5.415,3065.4,3065.3,3.26226]
[1720318127605,6.5446667,3065.4,3065.3,3.26226]
[1720318127807,7.96807827,3065.4,3065.3,3.26226]
[1720318128932,7.96807827,3065.4,3065.3,3.344242]
[1720318130042,7.01907827,3065.4,3065.3,3.344242]
[1720318130501,5.5956667,3065.4,3065.3,3.344242]
[1720318130709,6.5446667,3065.4,3065.3,3.344242]
[1720318130908,6.54460807,3065.4,3065.3,3.344242]
[1720318131439,6.54460427,3065.4,3065.3,3.344242]
[1720318131644,6.54460427,3065.4,3065.3,6.606562]
[1720318132634,6.54460326,3065.4,3065.3,6.606562]
[1720318132836,7.96790331,3065.4,3065.3,6.606562]
[1720318133945,6.54460326,3065.4,3065.3,6.606562]
[1720318134117,5.59560326,3065.4,3065.3,8.899162]
[1720318134325,4.466,3065.4,3065.3,8.899162]
[1720318134638,5.59557402,3065.4,3065.3,8.899162]
[1720318135651,6.54457402,3065.4,3065.3,8.899162]
[1720318136549,6.54457402,3065.4,3065.3,6.606562]
[1720318136722,5.415,3065.4,3065.3,6.606562]
[1720318136924,6.5446136,3065.4,3065.3,6.606562]
[1720318137320,7.9679395,3065.4,3065.3,6.606562]
[1720318137724,7.96796053,3065.4,3065.3,6.606562]
[1720318138209,7.01893428,3065.4,3065.3,6.606562]
[1720318138843,5.59562855,3065.4,3065.3,6.606562]
[1720318139029,7.01892451,3065.4,3065.3,6.606562]
[1720318140753,7.01887254,3065.4,3065.3,6.606562]
[1720318141117,4.466,3065.4,3065.3,6.606562]
[1720318141319,7.0188697,3065.4,3065.3,6.606562]
[1720318142011,7.0188697,3065.4,3065.3,3.344242]
[1720318142214,7.82134474,3065.4,3065.3,3.344242]
[1720318142416,7.82144785,3065.4,3065.3,3.344242]
[1720318142928,7.01897281,3065.4,3065.3,3.344242]
[1720318143333,4.466,3065.4,3065.3,6.606562]
[1720318143557,7.0189676,3065.4,3065.3,6.606562]
[1720318144217,7.0189676,3065.4,3065.3,3.344242]
[1720318144417,7.0189676,3065.4,3065.3,6.606562]
[1720318146539,4.466,3065.4,3065.3,6.606562]
[1720318146733,7.0189251,3065.4,3065.3,6.606562]
[1720318149931,7.01891695,3065.4,3065.3,6.606562]
[1720318150158,7.01892355,3065.4,3065.3,6.606562]
[1720318150374,5.88934901,3065.4,3065.3,6.606562]
[1720318150685,7.01899108,3065.4,3065.3,6.606562]
[1720318153197,4.466,3065.4,3065.3,6.606562]
[1720318153414,7.0188548,3065.4,3065.3,6.606562]
[1720318154476,7.0188548,3065.4,3065.3,12.350182]
[1720318155298,7.01869846,3065.4,3065.3,12.350182]
[1720318155484,4.466,3065.4,3065.3,12.350182]
[1720318156099,7.01856439,3065.4,3065.3,12.350182]
[1720318156460,5.59548357,3065.4,3065.3,12.350182]
[1720318156659,5.88914324,3065.4,3065.3,12.350182]
[1720318159469,5.88914324,3065.4,3065.3,9.087862]
[1720318159687,4.466,3065.4,3065.3,9.087862]
[1720318159881,7.01874191,3065.4,3065.3,12.350182]
[1720318160100,4.466,3065.4,3065.3,12.350182]
[1720318160266,7.01871346,3065.4,3065.3,12.350182]
[1720318160466,7.01871346,3065.4,3065.3,9.087862]
[1720318160742,7.01871346,3065.4,3065.3,12.350182]
[1720318161219,5.88919423,3065.4,3065.3,12.350182]
[1720318161380,7.01875014,3065.4,3065.3,12.350182]
[1720318161884,7.01875014,3065.4,3065.3,6.606562]
[1720318162991,5.88921468,3065.4,3065.3,6.606562]
[1720318163192,7.01875399,3065.4,3065.3,6.606562]
[1720318164284,7.01875399,3065.4,3065.3,6.548662]
[1720318165413,7.96775399,3065.4,3065.3,6.548662]
[1720318166330,5.415,3065.4,3065.3,6.548662]
[1720318166534,7.96776042,3065.4,3065.3,6.548662]
[1720318169625,5.415,3065.4,3065.3,6.548662]
[1720318169832,7.96778605,3065.4,3065.3,6.548662]
[1720318170135,7.81577597,3065.4,3065.3,6.548662]
[1720318170426,7.96799736,3065.4,3065.3,6.548662]
[1720318171189,7.96794193,3065.4,3065.3,6.548662]
[1720318171719,7.96794193,3065.4,3065.3,3.286342]
[1720318172031,7.96794193,3065.4,3065.3,0.081982]
[1720318172032,10.30174193,3065.4,3065.3,0.081982]
[1720318172206,11.71344897,3065.4,3065.3,0.081982]
[1720318172409,11.71344897,3065.4,3065.2,3.26242]
[1720318172756,2.55294193,3065.3,3065.2,3.26242]
[1720318172884,2.55314915,3065.3,3065.2,3.26242]
[1720318173391,2.61875843,3065.3,3065.2,3.26242]
[1720318173794,3.73519369,3065.3,3065.2,3.26242]
[1720318174009,3.73519369,3065.3,3065.2,3.34170406]
[1720318176133,1.18204454,3065.3,3065.2,3.34170406]
[1720318176295,2.61874451,3065.3,3065.2,3.34170406]
[1720318178398,2.61874451,3065.3,3065.2,0.07928406]
[1720318178831,2.61874451,3065.3,3065.0,3.26262]
[1720318178997,6.7998,3065.4,3065.2,0.07935803]
[1720318179332,3.5021957,3065.3,3065.0,3.26262]
[1720318179545,0.949,3065.1,3065.0,3.26262]
[1720318180043,2.078745,3065.1,3065.0,3.26262]
[1720318180194,3.5022237,3065.1,3065.0,3.26262]
[1720318180406,3.50222377,3065.1,3065.0,3.26262]
[1720318181135,3.50222377,3065.1,3064.8,3.26285]
[1720318181136,3.92757385,3065.1,3064.8,3.26285]
[1720318181432,0.949,3064.9,3064.8,3.26285]
[1720318181628,3.50222372,3064.9,3064.8,3.26285]
[1720318182834,0.949,3064.9,3064.6,3.26298]
[1720318183138,0.949,3064.7,3064.6,3.26298]
[1720318183333,7.01943228,3064.7,3064.6,3.26306]
[1720318183540,5.88956877,3064.7,3064.6,3.26306]
[1720318184042,7.01941809,3064.7,3064.6,3.26306]
[1720318184544,5.88956877,3064.7,3064.6,3.26306]
[1720318184845,7.01943325,3064.7,3064.6,3.26306]
[1720318185520,5.88956877,3064.7,3064.6,3.26306]
[1720318185835,7.01944039,3064.7,3064.6,6.52612]
[1720318186052,5.88956877,3064.7,3064.6,6.52612]
[1720318186224,4.466,3064.7,3064.6,6.52612]
[1720318187339,5.415,3064.7,3064.6,6.52612]
[1720318187631,6.83863484,3064.7,3064.6,6.52612]
[1720318187940,7.96850438,3064.7,3064.6,6.52612]
[1720318188716,6.54486954,3064.7,3064.6,6.60327089]
[1720318188916,7.96851214,3064.7,3064.6,6.60327089]
[1720318189439,6.83864264,3064.7,3064.6,6.60327089]
[1720318189642,5.415,3064.7,3064.6,6.60327089]
[1720318191266,6.54487016,3064.7,3064.6,6.60327089]
[1720318192333,6.54487895,3064.7,3064.6,6.60327089]
[1720318192746,6.54487965,3064.7,3064.6,6.60327089]
[1720318193267,5.59587965,3064.7,3064.6,6.60327089]
[1720318193570,5.59584987,3064.7,3064.6,6.60327089]
[1720318196170,5.59588298,3064.7,3064.6,6.60327089]
[1720318199366,4.466,3064.7,3064.6,6.60327089]
[1720318199579,5.59586857,3064.7,3064.6,6.60327089]
[1720318199776,4.466,3064.7,3064.6,6.60327089]
[1720318199982,5.59586172,3064.7,3064.6,6.60327089]
[1720318202007,5.59584952,3064.7,3064.6,12.31773089]
[1720318202283,1.01460928,3065.3,3065.2,6.52484]
[1720318202441,3.50210537,3065.3,3065.2,6.52484]
[1720318202849,3.50210537,3065.3,3065.2,6.60186534]
[1720318204197,1.12969264,3065.3,3065.2,6.60186534]
[1720318204391,1.12969264,3065.3,3065.2,9.86428534]
[1720318204550,4.466,3065.4,3065.3,6.52464]
[1720318204888,5.59550694,3065.4,3065.3,6.52464]
[1720318205095,4.466,3065.4,3065.3,6.60157527]
[1720318205261,5.59555859,3065.4,3065.3,6.60157527]
[1720318205851,6.31562373,3065.4,3065.3,3.33925527]
[1720318206047,7.73894805,3065.4,3065.3,3.33925527]
[1720318208491,7.73916961,3065.4,3065.3,3.33925527]
[1720318208706,5.18606514,3065.4,3065.3,3.33925527]
[1720318208872,7.73916934,3065.4,3065.3,3.33925527]
[1720318211792,7.73920011,3065.4,3065.3,3.26232]
[1720318213656,7.73920011,3065.4,3065.2,3.26242]
[1720318213959,4.61988498,3065.3,3065.2,3.26242]
[1720318214880,2.06675001,3065.3,3065.2,3.26242]
[1720318215064,4.61990413,3065.3,3065.2,3.26242]
[1720318215690,4.68551341,3065.3,3065.1,3.26253]
[1720318215868,2.6187634,3065.2,3065.1,3.26253]
[1720318216188,3.46830546,3065.2,3065.1,3.26253]
[1720318216388,4.41730546,3065.2,3065.1,3.26253]
[1720318217357,3.50215412,3065.2,3065.1,6.52506]
[1720318217705,2.55315412,3065.2,3065.1,6.52506]
[1720318218192,0.949,3065.3,3065.2,3.26242]
[1720318218384,4.466,3065.4,3065.3,3.26232]
[1720318218699,7.01909064,3065.4,3065.3,3.26232]
[1720318218872,7.96809064,3065.4,3065.3,3.33909384]
[1720318219655,7.96807802,3065.4,3065.3,3.33909384]
[1720318220797,8.76488582,3065.4,3065.3,3.33909384]
[1720318221374,6.2118078,3065.4,3065.3,3.33909384]
[1720318221576,8.76494173,3065.4,3065.3,3.33909384]
[1720318221920,8.76494173,3065.4,3065.3,0.07677384]
[1720318222311,8.76496947,3065.4,3065.2,3.26242]
[1720318222473,4.466,3065.4,3065.3,3.33909384]
[1720318222663,7.96818707,3065.4,3065.3,3.33909384]
[1720318222869,10.30278707,3065.4,3065.3,3.33909384]
[1720318223779,10.30278707,3065.4,3065.3,0.07677384]
[1720318224004,10.30278707,3065.4,3065.1,6.52499]
[1720318224171,0.949,3065.2,3065.1,3.26246]
[1720318224372,3.50218707,3065.2,3065.1,3.26246]
[1720318224696,0.949,3065.2,3065.1,3.26246]
[1720318224901,4.92572341,3065.2,3065.1,3.26246]
[1720318226309,3.50223719,3065.2,3065.1,3.26246]
[1720318227185,4.64210971,3065.2,3065.1,3.26246]
[1720318228210,4.64204874,3065.2,3065.1,3.26246]
[1720318228513,3.50221127,3065.2,3065.1,3.26246]
[1720318229591,3.50216939,3065.2,3065.1,3.26246]
[1720318231389,2.07875098,3065.2,3065.1,3.26246]
[1720318231612,3.50223726,3065.2,3065.1,3.26246]
[1720318233905,3.50223726,3065.2,3065.1,3.37299598]
[1720318234601,0.949,3065.2,3065.1,3.37299598]
[1720318234816,2.07876686,3065.2,3065.1,3.37299598]
[1720318235000,3.50227311,3065.2,3065.1,3.37299598]
[1720318237958,4.30566135,3065.2,3065.1,0.11053598]
[1720318238108,5.8697131,3065.2,3065.1,0.11053598]
[1720318238444,4.04068824,3065.2,3065.1,0.11053598]
[1720318238750,8.15808056,3065.2,3065.1,0.11053598]
[1720318239644,8.15808394,3065.2,3065.1,0.11053598]
[1720318239945,5.86978394,3065.2,3065.1,0.11053598]
[1720318240160,4.1173957,3065.2,3065.1,6.63559598]
[1720318240326,3.50235991,3065.2,3065.1,6.63559598]
[1720318240654,3.50217045,3065.2,3065.1,6.63559598]
[1720318241352,2.07872281,3065.2,3065.1,6.63559598]
[1720318241550,3.50218534,3065.2,3065.1,6.63559598]
[1720318241755,2.55318534,3065.2,3065.1,6.63559598]
[1720318241910,2.55318534,3065.2,3065.1,8.96709598]
[1720318244555,1.42345735,3065.2,3065.1,8.96709598]
[1720318244716,0.949,3065.3,3065.2,6.52484]
[1720318244912,3.50205295,3065.3,3065.2,6.63161168]
[1720318247852,2.37237796,3065.3,3065.2,6.63161168]
[1720318248042,4.6317199,3065.3,3065.2,6.63161168]
[1720318248237,4.63172728,3065.3,3065.2,6.63161168]
[1720318249390,4.63171341,3065.3,3065.2,6.63161168]
[1720318249950,3.68271341,3065.3,3065.2,6.63161168]
[1720318250353,1.12967046,3065.3,3065.2,6.63161168]
[1720318250539,3.68245812,3065.3,3065.2,6.63161168]
[1720318250968,3.68245812,3065.3,3065.2,9.89403168]
[1720318251278,3.6824501,3065.3,3065.2,9.89403168]
[1720318251777,3.68244316,3065.3,3065.2,9.89403168]
[1720318252390,2.49688193,3065.9,3065.8,9.78537]
[1720318252547,1.42297589,3065.9,3065.8,15.29661997]
[1720318252747,4.466,3066.4,3066.0,3.26156]
[1720318252958,1.4227771,3066.3,3066.2,6.52272]
[1720318253378,4.466,3066.4,3066.3,6.5225]
[1720318253569,5.88876286,3066.4,3066.3,6.5225]
[1720318253779,4.466,3066.4,3066.3,9.02783666]
[1720318254357,4.466,3066.4,3066.3,12.28908666]
[1720318256483,4.466,3066.4,3066.3,15.28908666]
[1720318259684,4.466,3066.4,3066.3,18.55033666]
[1720318260671,2.44,3066.9,3066.8,6.52144]
[1720318261065,2.44,3066.9,3066.8,6.62125741]
[1720318263528,2.44,3066.9,3066.8,12.28667741]
[1720318263733,4.466,3067.1,3067.0,9.78153]
[1720318264028,4.466,3067.1,3067.0,9.88129968]
[1720318264724,7.48,3067.3,3067.2,9.7809]
[1720318264937,7.48,3067.3,3067.2,15.4459]
[1720318265098,4.466,3067.9,3067.6,9.77961]
[1720318265431,4.466,3067.9,3067.8,9.77898]
[1720318265721,4.466,3067.9,3067.8,9.87852543]
[1720318265970,7.48,3068.4,3068.2,6.51846]
[1720318266335,4.466,3068.6,3068.2,13.13637005]
[1720318266892,4.466,3068.6,3068.2,9.87714005]
[1720318267547,4.466,3068.6,3068.2,6.61791005]
[1720318271623,4.466,3068.6,3068.2,9.87714005]
[1720318275715,4.466,3068.6,3068.2,12.20824005]
[1720318276362,4.466,3068.6,3068.2,9.87714005]
[1720318284358,4.466,3068.6,3068.2,6.61791005]
[1720318296341,4.466,3068.6,3068.2,9.87714005]
[1720318296977,4.466,3068.6,3068.2,6.61791005]
[1720318297404,4.466,3068.6,3068.2,9.87714005]
[1720318297807,4.466,3068.6,3068.2,6.61791005]
[1720318298012,4.466,3068.6,3068.2,9.87714005]
[1720318303330,4.466,3068.6,3068.2,13.13637005]
[1720318303690,4.466,3068.6,3068.2,18.53737005]
[1720318304332,4.466,3068.6,3068.2,19.48437005]
[1720318304507,3.2231,3069.4,3068.2,19.48437005]
[1720318304704,3.28870928,3069.4,3068.2,19.48437005]
[1720318304907,3.3e-06,3068.3,3068.2,19.48437005]
[1720318306825,3.3e-06,3068.3,3068.2,18.53737005]
[1720318307028,3.3e-06,3068.3,3068.2,19.48437005]
[1720318307560,3.3e-06,3068.3,3068.2,9.61791005]
[1720318308117,3.3e-06,3068.3,3068.2,12.87714005]
[1720318309228,3.3e-06,3068.3,3068.2,18.39837005]
[1720318310067,3.3e-06,3068.3,3068.2,15.13914005]
[1720318310661,3.3e-06,3068.3,3068.2,18.39837005]
[1720318311162,3.3e-06,3068.3,3068.2,15.13914005]
[1720318312253,3.3e-06,3068.3,3068.2,9.61791005]
[1720318312465,3.3e-06,3068.3,3068.2,12.87714005]
[1720318313980,3.3e-06,3068.3,3068.2,9.61791005]
[1720318314369,3.3e-06,3068.3,3068.2,12.87714005]
[1720318318277,3.3e-06,3068.3,3068.2,16.08614005]
[1720318318486,3.3e-06,3068.3,3068.2,19.34537005]
[1720318320080,3.3e-06,3068.3,3068.2,18.39837005]
[1720318320250,3.3e-06,3068.3,3068.2,19.34537005]
[1720318320984,3.3e-06,3068.3,3068.2,18.39837005]
[1720318322671,4.466,3068.9,3068.2,18.39837005]
[1720318322672,4.466,3068.9,3068.8,9.7758]
[1720318323015,2.4698,3069.5,3069.4,6.51592]
[1720318323166,3.8912033,3069.5,3069.4,6.51592]
[1720318323367,1.4214033,3069.5,3069.4,6.60953228]
[1720318323593,4.466,3069.6,3069.5,6.5157]
[1720318323873,2.49680299,3070.1,3069.6,3.25773]
[1720318324087,2.44,3070.1,3069.9,6.51486]
[1720318324371,2.44,3070.1,3070.0,6.60804932]
[1720318324606,2.44,3070.1,3070.0,9.86536932]
[1720318325509,4.466,3070.3,3070.2,6.51422]
[1720318326015,4.466,3070.3,3070.2,6.60758169]
[1720318328895,2.3178,3070.2,3068.7,12.26]
[1720318329098,2.44,3069.8,3068.1,0.32890594]
[1720318329374,2.44,3069.8,3068.4,3.25893]
[1720318329375,2.3178,3069.1,3068.4,3.25893]
[1720318329575,2.3178,3069.1,3068.0,3.25942]
[1720318329576,2.271,3068.8,3068.0,3.25942]
[1720318329770,0.06560928,3068.7,3068.0,3.25942]
[1720318330016,0.06560928,3068.7,3067.8,3.25965]
[1720318330173,0.06560928,3068.7,3068.1,3.2593]
[1720318330376,4.466,3069.0,3068.2,0.06517977]
[1720318330694,4.466,3069.0,3067.4,3.26]
[1720318330695,4.466,3069.0,3068.7,3.25868]
[1720318330897,4.466,3069.0,3068.0,3.25935]
[1720318330898,4.466,3069.0,3068.8,3.25854]
[1720318331833,4.466,3069.0,3068.9,6.51698]
[1720318331976,2.3178,3070.1,3069.7,3.25756]
[1720318332177,4.466,3070.0,3069.9,3.25743]
[1720318333992,4.466,3070.0,3069.6,3.25774]
[1720318334209,4.466,3070.0,3069.6,3.25769]
[1720318334409,4.466,3070.0,3069.1,3.0]
[1720318334410,4.466,3070.0,3069.7,3.25758]
[1720318335520,4.466,3070.0,3069.8,3.25747]
[1720318336510,4.466,3070.0,3069.9,0.07445608]
[1720318340064,4.466,3070.0,3069.9,3.3971891]
[1720318340212,4.466,3070.0,3069.9,6.51486]
[1720318340410,4.466,3070.0,3069.9,6.58946654]
[1720318340913,4.466,3070.0,3069.9,3.33203654]
[1720318341227,4.466,3070.0,3069.9,6.58946654]
[1720318341440,7.1836,3070.0,3069.9,0.07460654]
[1720318341734,7.1836,3070.0,3069.4,3.25794]
[1720318341945,0.06560928,3069.9,3069.4,3.25794]
[1720318342250,0.06560928,3069.9,3069.5,0.07214754]
[1720318342429,0.72492093,3069.8,3069.5,0.07214754]
[1720318343245,0.72492093,3069.8,3069.5,3.32998754]
[1720318344260,4.9126,3070.0,3069.5,3.32998754]
[1720318344629,4.9126,3070.0,3069.7,3.25762]
[1720318344829,4.9126,3070.0,3069.8,0.07217751]
[1720318345061,4.9126,3070.0,3069.7,3.25762]
[1720318345357,4.9126,3070.0,3069.8,0.07217751]
[1720318345758,0.72304,3069.9,3069.5,3.25778]
[1720318345920,0.78864928,3069.9,3069.5,3.25778]
[1720318346115,0.72304,3069.9,3069.6,3.25771]
[1720318346858,0.72304,3069.9,3069.5,3.25778]
[1720318346859,4.9126,3070.0,3069.7,3.25763]
[1720318347571,4.466,3070.0,3069.9,3.25743]
[1720318348051,4.466,3070.0,3069.9,6.51486]
[1720318348655,2.44,3070.6,3070.5,3.25679]
[1720318349457,2.44,3070.6,3070.3,3.25701]
[1720318349458,2.44,3070.6,3070.3,3.25694]
[1720318349848,2.44,3070.6,3070.4,3.25689]
[1720318350019,2.44,3070.6,3070.5,3.25679]
[1720318351221,2.44,3070.6,3070.4,3.25689]
[1720318351416,3.1306,3070.6,3070.2,3.2571]
[1720318351653,3.19620928,3070.6,3070.2,3.2571]
[1720318352157,3.19620928,3070.6,3070.3,3.25692]
[1720318352158,3.1306,3070.6,3070.3,3.25692]
[1720318352561,2.44,3070.6,3070.3,3.25692]
[1720318353747,2.44,3070.6,3070.4,0.07203464]
[1720318354430,2.50560928,3070.6,3070.4,0.07203464]
[1720318354774,2.50560928,3070.6,3070.1,3.2572]
[1720318354927,2.50560928,3070.6,3070.5,0.0719601]
[1720318355128,3.20277021,3070.6,3070.1,3.2572]
[1720318355348,3.20277021,3070.6,3070.5,0.0719601]
[1720318355549,3.13716093,3070.6,3070.1,3.32233966]
[1720318355755,2.44,3070.6,3070.5,0.0719601]
[1720318355969,2.4839,3070.5,3069.5,10.59777]
[1720318356189,2.271,3070.1,3069.7,3.25756]
[1720318356386,4.466,3070.4,3069.9,3.25742]
[1720318356731,4.466,3070.4,3070.0,3.25731]
[1720318359574,4.466,3070.4,3069.0,3.0]
[1720318359575,4.53160928,3070.4,3069.6,3.2577]
[1720318359778,1.42128341,3070.3,3069.6,3.2577]
[1720318359993,0.06560928,3070.2,3069.6,3.2577]
[1720318360209,1.42128341,3070.1,3069.6,3.2577]
[1720318360983,0.06560928,3070.0,3069.6,3.2577]
[1720318361190,0.06560928,3070.3,3069.6,3.2577]
[1720318361397,1.42139444,3070.2,3069.6,3.2577]
[1720318361603,0.06560928,3070.1,3069.6,3.2577]
[1720318361782,1.42139444,3070.0,3069.6,3.2577]
[1720318361983,0.06560928,3070.1,3069.6,3.2577]
[1720318362292,2.4839,3069.9,3069.2,3.25811]
[1720318362496,2.4839,3069.9,3069.4,3.25788]
[1720318362700,2.4839,3069.9,3069.5,0.0696724]
[1720318362900,2.73229,3069.9,3069.5,0.0696724]
[1720318363215,2.73229,3069.9,3069.5,3.3275024]
[1720318363503,1.48702933,3069.8,3069.5,3.3275024]
[1720318363685,0.06560928,3069.8,3069.5,3.3275024]
[1720318364005,2.73229,3069.9,3069.5,3.3275024]
[1720318364202,1.42141636,3069.8,3069.6,3.25773]
[1720318364409,2.54950928,3070.3,3069.8,3.25752]
[1720318364574,2.22257879,3070.2,3069.8,3.25752]
[1720318364778,1.42133073,3070.1,3069.9,0.06957713]
[1720318365595,1.42132028,3070.0,3069.9,0.06957713]
[1720318365794,1.42132028,3070.1,3069.6,3.25768]
[1720318366001,0.06560928,3070.0,3069.9,0.06957713]
[1720318366165,1.70918639,3070.0,3069.6,3.25768]
[1720318366495,1.42132028,3069.9,3069.6,3.25768]
[1720318367916,1.42132028,3069.9,3069.7,3.25761]
[1720318368608,0.06560928,3070.1,3069.7,3.25761]